Cogmind - Beta 16 @@@ ROGUE MODE // 2025.11.26 @ 23:47:36 Player: AlcoholicAardvark Result: Destroyed by H-55 Commando with Assault Rifle Performance ------------- Evolutions (2) 1000 Regions Visited (6) 1200 Robots Destroyed (27) 135 Value Destroyed (902) 902 Prototype IDs (24) 480 Alien Tech Used (0) 0 Bonus (299) 299 TOTAL SCORE: 4016 Bonus ------- Follower Combat Kills 14 Aligned with FarCom 300 Friendly Fire -15 Cogmind --------- Core Integrity 0/550 Matter 258/300 Energy 100/100 System Corruption 3% Temperature Cool (0) Movement Core (200) Ox3 Location -8/Materials Parts ------- > --- POWER (1) -------- (None) > --- PROPULSION (4) --- (None) > --- UTILITY (4) ------ Medium Storage Unit Improved Terrain Scan Processor Targeting Computer > --- WEAPON (2) ------- (None) > --- INVENTORY (10) --- Ion Engine Light Nuclear Core Aluminum Leg Aluminum Leg Terrain Scanner Spread Laser Ion Cannon Gauss Rifle Peak State ------------ > --- POWER ------------ Light Deuterium Engine > --- PROPULSION ------- Aluminum Leg Aluminum Leg Carbon-fiber Leg Carbon-fiber Leg > --- UTILITY ---------- Medium Storage Unit Improved Terrain Scan Processor Targeting Computer Hardened Medium Armor Plating > --- WEAPON ----------- YOLO Cannon > --- INVENTORY -------- Ion Engine Light Nuclear Core Aluminum Leg Aluminum Leg Terrain Scanner Spread Laser Ion Cannon Gauss Rifle [Rating: 40] Favorites ----------- Power Ion Engine Engine Ion Engine Propulsion Aluminum Leg Leg Aluminum Leg Utility Small Storage Unit Device Terrain Scanner Storage Small Storage Unit Processor Targeting Computer Protection Hardened Light Armor Plating Weapon Spread Laser Energy Gun Spread Laser Energy Cannon YOLO Cannon Ballistic Gun Shotgun Ballistic Cannon Improved Light Cannon Build | -11 -10 -9 -9 -9 -8 -8 ------- Run | Yrd Mat Mat Min Exi Min Mat Slots Evolved 4 | . . 2 . . . 2 Power . | . . . . . . . Propulsion 2 | . . 2 . . . . Utility 2 | . . . . . . 2 Weapon . | . . . . . . . Parts Attached 36 | 6 1 9 6 1 3 10 Power 5 | 1 . 1 1 . . 2 Engine 5 | 1 . 1 1 . . 2 Core . | . . . . . . . Reactor . | . . . . . . . Propulsion 11 | 2 . 4 3 . 2 . Treads . | . . . . . . . Leg 11 | 2 . 4 3 . 2 . Wheel . | . . . . . . . Hover . | . . . . . . . Flight . | . . . . . . . Utility 10 | 1 1 1 . 1 1 5 Device 2 | . . . . . . 2 Storage 2 | 1 . . . 1 . . Processor 3 | . . . . . 1 2 Hackware . | . . . . . . . Protection 3 | . 1 1 . . . 1 Artifact . | . . . . . . . Weapon 10 | 2 . 3 2 . . 3 Energy Gun 5 | 1 . 2 1 . . 1 Energy Cannon 2 | . . . . . . 2 Ballistic Gun 2 | 1 . . 1 . . . Ballistic Cannon 1 | . . 1 . . . . Launcher . | . . . . . . . Special Weapon . | . . . . . . . Impact Weapon . | . . . . . . . Slashing Weapon . | . . . . . . . Piercing Weapon . | . . . . . . . Special Melee Weapon . | . . . . . . . Unidentified Prototypes 1 | . . . . . . 1 Parts Lost 14 | . . 3 1 . 1 9 Power 2 | . . . . . . 2 Propulsion 5 | . . . 1 . . 4 Utility 3 | . . . . . 1 2 Weapon 4 | . . 3 . . . 1 Highest Loss Streak 7 | . . 3 4 . 1 7 To Critical Strikes 1 | . . 1 . . . . Average Backups 5 | 1 2 7 3 3 7 6 Power 1 | . 1 1 1 1 1 1 Propulsion 1 | . . 2 . . 1 2 Utility 1 | . . 2 2 2 2 . Weapon 1 | . 1 1 . . 1 2 Tool/Special . | . . . . . . . Unused Backups 3 | . 1 . . . . 2 Power 1 | . . . . . . 1 Propulsion 1 | . 1 . . . . . Utility . | . . . . . . . Weapon 1 | . . . . . . 1 Tool/Special . | . . . . . . . Average Slot Usage (%) 98 | . 95 99 97 100 99 98 Engine 10 | . 14 11 11 11 11 8 Leg 39 | . 28 43 43 44 44 35 Device 2 | . . . . . . 8 Storage 10 | . 14 11 11 11 11 9 Processor 7 | . . . . . 10 17 Protection 5 | . 9 11 11 11 . . Energy Gun 12 | . 14 11 11 11 11 14 Ballistic Gun 6 | . 14 1 9 11 11 2 Ballistic Cannon 1 | . . 9 . . . . Peak Build Rating 40 | 6 7 12 12 14 18 40 Average Rating 15 | 4 6 11 11 12 17 23 On Entrance 9 | . 6 7 8 12 14 18 Avg Prop Armor Cover (%) . | . . . . . . . Naked Turns . | . . . . . . . Heaviest Build 41 | 11 12 20 21 26 21 41 Greatest Support 50 | 20 20 40 40 40 50 50 Greatest Overweight (x) 4 | 3 . . . . . 4 Average Overweight (x) . | . . . . . . . Largest Inventory Capacity 10 | 8 8 8 8 10 10 10 Average Capacity 8 | 7 8 8 8 8 10 10 Most Carried 10 | 2 8 8 6 6 10 10 Average Carried 5 | 1 2 7 3 3 8 7 Final Capacity 10 | 8 8 8 8 10 10 10 Final Carried 10 | 2 8 7 3 5 10 8 Class Distribution -------------------- 57% | Mutant 18% | Scavenger-Skirmisher 12% | Scavenger-Mutant 11% | Skirmisher Dominant Class ---------------- Mutant | -10/Materials Mutant | -9/Materials Mutant | -9/Mines Mutant | -9/Exiles Scavenger-Mutant | -8/Mines Scavenger-Skirmisher | -8/Materials Resources | -11 -10 -9 -9 -9 -8 -8 ----------- Run | Yrd Mat Mat Min Exi Min Mat Matter Collected 663 | 171 106 142 89 . 64 91 Remotely . | . . . . . . . Salvage Created 761 | . 98 242 91 . 30 300 Parts 49 | . 5 17 7 . 4 16 Haulers Intercepted . | . . . . . . . Recyclers Shooed 1 | . . . 1 . . . Parts Field Recycled . | . . . . . . . Retrieved Matter . | . . . . . . . Parts Self-Destructed . | . . . . . . . Prevented . | . . . . . . . Parts Restored . | . . . . . . . Kills | -11 -10 -9 -9 -9 -8 -8 ------- Run | Yrd Mat Mat Min Exi Min Mat Combat Hostiles Destroyed 24 | . 2 10 4 . 1 7 Guns 18 | . 2 6 4 . 1 5 Cannons 6 | . . 4 . . . 2 Classes Destroyed 7 | . 1 2 . . 1 3 Worker 2 | . . . . . . 2 Watcher 1 | . . . . . . 1 Swarmer 6 | . . 4 2 . . . Grunt 12 | . 2 4 2 . . 4 Sentry 4 | . . 2 . . . 2 Hunter 1 | . . . . . 1 . Heavy 1 | . . . . . . 1 Best Kill Streak 4 | . 2 4 2 . 1 4 Combat Bots Only 4 | . 2 4 2 . 1 3 Max Kills in Single Turn 2 | . 1 1 1 . 1 2 Gunslinging 1 | . . . . . . 1 Exploded . | . . . . . . . Melee . | . . . . . . . Uniques/NPCs Destroyed . | . . . . . . . Combat | -11 -10 -9 -9 -9 -8 -8 -------- Run | Yrd Mat Mat Min Exi Min Mat Hostile Shots Fired 215 | . 11 108 15 . 6 75 Missed 48 | . 2 32 3 . 2 9 Hits 167 | . 9 76 12 . 4 66 Projectile 167 | . 9 76 12 . 4 66 Critical Strikes 4 | . . 2 . . . 2 Damage Taken 2362 | . 99 838 150 . 69 1206 Core 513 | . 19 90 42 . 13 349 Absorbed by Shields . | . . . . . . . Redirected to Shielding 9 | . 4 5 . . . . Core Remaining (%) 85 | 100 92 . . . 63 . Volleys Fired 85 | . 7 32 13 . 4 29 Largest 2 | . 2 2 2 . 2 2 Hottest 120 | . 70 105 88 . 88 120 Shots Fired 142 | . 14 54 16 . 8 50 Gun 112 | . 14 31 16 . 8 43 Cannon 30 | . . 23 . . . 7 Launcher . | . . . . . . . Special . | . . . . . . . Kinetic 46 | . 7 23 3 . 4 9 Thermal 88 | . 7 23 13 . 4 41 Explosive . | . . . . . . . Electromagnetic 8 | . . 8 . . . . Robot Hit Streak 17 | . 7 12 8 . 17 10 Robot Miss Streak 6 | . 1 5 6 . 2 5 Penetration Max . | . . . . . . . Secondary Targets 3 | . . 2 . . . 1 Max Gunslinging Chain 1 | . . 1 . . . 1 Shots Hit Robots 107 | . 12 41 14 . 7 33 Core Hits 92 | . 5 29 19 . 6 33 Critical Kills . | . . . . . . . Critical Parts Destroyed . | . . . . . . . Critical Strikes . | . . . . . . . Melee Attacks . | . . . . . . . Impact . | . . . . . . . Slashing . | . . . . . . . Piercing . | . . . . . . . Sneak Attacks . | . . . . . . . Combat Hostiles . | . . . . . . . Follow-up Attacks . | . . . . . . . Damage Inflicted 2084 | . 123 578 232 . 88 1063 Guns 1228 | . 123 306 232 . 88 479 Cannons 451 | . . 272 . . . 179 Explosions 405 | . . . . . . 405 Melee . | . . . . . . . Ramming . | . . . . . . . Kinetic 481 | . 59 272 50 . 37 63 Thermal 1441 | . 64 256 182 . 51 888 Explosive 112 | . . . . . . 112 Electromagnetic 50 | . . 50 . . . . Impact . | . . . . . . . Slashing . | . . . . . . . Piercing . | . . . . . . . Highest Corruption 3 | . . . . . . 3 Average Corruption 2 | . . . . . . 2 Corruption Purged . | . . . . . . . Corruption Blocked . | . . . . . . . Effects 5 | . . . . . . 5 Matter Fused 1 | . . . . . . 1 Heat Flow Errors 1 | . . . . . . 1 Energy Discharges 3 | . . . . . . 3 Overload Shots . | . . . . . . . Overflow Damage 16 | . . . . . . 16 Projectiles . | . . . . . . . Explosions 16 | . . . . . . 16 Melee . | . . . . . . . Knockbacks 4 | . . 4 . . . . Impact . | . . . . . . . Kinetic 3 | . . 3 . . . . Secondary 1 | . . 1 . . . . Self-Inflicted Damage 78 | . . . . . . 78 Shots 1 | . . . . . . 1 Rammed . | . . . . . . . Targets Rammed . | . . . . . . . Kicked . | . . . . . . . Crushed . | . . . . . . . Highest Temperature 498 | . 138 498 352 . 87 429 Average Temperature 130 | . 62 153 138 . 48 129 Received Heat Transfer 648 | . 54 261 72 . . 261 Effects 8 | . . 4 1 . . 3 Shutdowns 1 | . . 1 . . . . Energy Bleed 2 | . . 1 1 . . . Interference 1 | . . 1 . . . . Damage (minor) 1 | . . 1 . . . . Damage (major) 3 | . . . . . . 3 Siege Activations . | . . . . . . . Martial Activations . | . . . . . . . Shielding Activations . | . . . . . . . Robots Disrupted . | . . . . . . . Combat Hostiles . | . . . . . . . Robots Corrupted . | . . . . . . . Combat Hostiles . | . . . . . . . Parts Fried . | . . . . . . . Impact Corruptions . | . . . . . . . Robots Melted . | . . . . . . . Combat Hostiles . | . . . . . . . Parts Melted 1 | . . . . . . 1 Heat Transferred 1939 | . 185 320 215 . 65 1154 Parts Sabotaged . | . . . . . . . Parts Stolen . | . . . . . . . Parts Stripped . | . . . . . . . Power Chain Reactions . | . . . . . . . Alert | -11 -10 -9 -9 -9 -8 -8 ------- Run | Yrd Mat Mat Min Exi Min Mat Maximum Alert Level . | . . . . . . . Low Security (%) 100 | 100 100 100 100 . 100 100 Level 1 . | . . . . . . . Level 2 . | . . . . . . . Level 3 . | . . . . . . . Level 4 . | . . . . . . . Level 5 . | . . . . . . . High Security . | . . . . . . . Max Security . | . . . . . . . Peak Influence 130 | . 30 130 120 . 30 115 Initial 50 | . . 3 50 . . . Average 17 | . 2 34 40 . 2 10 Influence Increases 830 | . 51 282 150 . 30 317 Destroy 0b10 Robot/C 520 | . 40 200 120 . 20 140 Destroy 0b10 Robot/NC 15 | . . . . . . 15 Destroy Leader 122 | . . 50 20 . 10 42 Allied During Kill 10 | . . . 10 . . . Successful Hack 20 | . 11 . . . . 9 Disable Machine 45 | . . . . . . 45 Destroy Structure 53 | . . 2 . . . 51 Lose Combat Pursuer 45 | . . 30 . . . 15 Influence Decreases 764 | . 41 162 280 . 30 251 Entered New Map 87 | . . 7 80 . . . Time Decay 557 | . 41 125 190 . 30 171 Lost Part 120 | . . 30 10 . . 80 Squads Dispatched 5 | . 3 1 . . . 1 Investigation 3 | . 3 . . . . . Extermination . | . . . . . . . Reinforcement 2 | . . 1 . . . 1 Assault . | . . . . . . . Garrison . | . . . . . . . Intercept . | . . . . . . . Searches Triggered . | . . . . . . . Construction Impeded . | . . . . . . . Haulers Reinforced . | . . . . . . . Active Scanning Responses . | . . . . . . . Cargo Convoy Interrupts . | . . . . . . . Stealth | -11 -10 -9 -9 -9 -8 -8 --------- Run | Yrd Mat Mat Min Exi Min Mat Distress Signals 7 | . 3 1 . . . 3 Communications Jammed . | . . . . . . . Distress Signals . | . . . . . . . Times Spotted 44 | . 3 20 6 . 1 14 Peak Tracking Total 6 | . 3 6 4 . 1 4 Tactical Retreats 2 | . . 1 . . . 1 Traps | -11 -10 -9 -9 -9 -8 -8 ------- Run | Yrd Mat Mat Min Exi Min Mat Traps Triggered 3 | . 1 . . . . 2 Indirectly . | . . . . . . . Trap Hack Attempts . | . . . . . . . Triggered . | . . . . . . . Disarmed . | . . . . . . . Reprogrammed . | . . . . . . . Reused . | . . . . . . . Traps Extracted . | . . . . . . . Installed . | . . . . . . . Triggered . | . . . . . . . Machines | -11 -10 -9 -9 -9 -8 -8 ---------- Run | Yrd Mat Mat Min Exi Min Mat Machines Disabled 3 | . . . . . . 3 Max in Single Turn 1 | . . . . . . 1 Machines Repaired . | . . . . . . . Machines Dismantled . | . . . . . . . Machines Sabotaged . | . . . . . . . Overloaded Fab Kills . | . . . . . . . Hacking | -11 -10 -9 -9 -9 -8 -8 --------- Run | Yrd Mat Mat Min Exi Min Mat Machines Accessed 9 | . 4 2 . 1 . 2 Terminals 7 | . 3 2 . . . 2 Fabricators . | . . . . . . . Repair Stations . | . . . . . . . Recycling Units 1 | . 1 . . . . . Scanalyzers . | . . . . . . . Garrison Access . | . . . . . . . Total Hacks 23 | . 9 9 . 1 . 4 Successful 8 | . 3 1 . 1 . 3 Failed 15 | . 6 8 . . . 1 Catastrophic 5 | . 4 1 . . . . Database Lockouts . | . . . . . . . Manual 16 | . 7 5 . 2 . 2 Terminals 21 | . 8 9 . . . 4 Fabricators . | . . . . . . . Repair Stations . | . . . . . . . Recycling Units 1 | . 1 . . . . . Scanalyzers . | . . . . . . . Garrison Access . | . . . . . . . Terminal Hacks 7 | . 2 1 . 1 . 3 Level Access Points 1 | . . . . . . 1 Terminal Index 2 | . 1 . . . . 1 Alert Level 1 | . . . . . . 1 Hauler Manifests 2 | . 1 1 . . . . Proto ID Catalog 1 | . . . . 1 . . Fabricator Hacks . | . . . . . . . Repair Station Hacks . | . . . . . . . Recycling Unit Hacks 1 | . 1 . . . . . Report Inventory 1 | . 1 . . . . . Scanalyzer . | . . . . . . . Garrison Access Hacks . | . . . . . . . Unauthorized Hacks . | . . . . . . . Terminals . | . . . . . . . Fabricators . | . . . . . . . Repair Stations . | . . . . . . . Recycling Units . | . . . . . . . Scanalyzers . | . . . . . . . Garrison Access . | . . . . . . . Data Cores Recovered . | . . . . . . . Used . | . . . . . . . Hacking Detections 6 | . 3 2 . . . 1 Full Trace Events . | . . . . . . . Feedback Events . | . . . . . . . Feedback Blocked . | . . . . . . . Robot Schematics Acquired . | . . . . . . . Robots Built . | . . . . . . . Authchips . | . . . . . . . Time . | . . . . . . . Total Robot Build Rating . | . . . . . . . Part Schematics Acquired . | . . . . . . . Parts Built . | . . . . . . . Authchips . | . . . . . . . Time . | . . . . . . . Total Part Build Rating . | . . . . . . . Part Studies Acquired . | . . . . . . . Parts Repaired . | . . . . . . . Time . | . . . . . . . Parts Recycled . | . . . . . . . Recycled Matter . | . . . . . . . Retrieved Matter . | . . . . . . . Retrieved Components . | . . . . . . . Parts Scanalyzed . | . . . . . . . Part Schematics Acquired . | . . . . . . . Parts Damaged . | . . . . . . . Bothacking | -11 -10 -9 -9 -9 -8 -8 ------------ Run | Yrd Mat Mat Min Exi Min Mat Used RIF Installer . | . . . . . . . Robots Hacked . | . . . . . . . Non-combat . | . . . . . . . Combat . | . . . . . . . Robot Hacks Applied . | . . . . . . . Relay Couplers Released . | . . . . . . . Fabnet Peak Effective % . | . . . . . . . Robots Rewired . | . . . . . . . Allies Hacked . | . . . . . . . Hacks Repelled . | . . . . . . . Allies | -11 -10 -9 -9 -9 -8 -8 -------- Run | Yrd Mat Mat Min Exi Min Mat Total Allies 2 | . . . 2 . . . Largest Group 2 | . . . 2 2 . . Highest-Rated Group 44 | . . . 44 44 . . Highest-Rated Ally 31 | . . . 31 31 . . Total Orders . | . . . . . . . Ally Attacks 3 | . . . 3 . . . Total Damage 43 | . . . 43 . . . Kills 2 | . . . 2 . . . Allies Corrupted . | . . . . . . . Allies Melted . | . . . . . . . Intel | -11 -10 -9 -9 -9 -8 -8 ------- Run | Yrd Mat Mat Min Exi Min Mat Active Infowar (turns) 1054 | . . . . . . 1054 Terrain 1054 | . . . . . . 1054 Robot Analysis Total . | . . . . . . . Derelict Logs Recovered . | . . . . . . . Drone Launches . | . . . . . . . Drone Recoveries . | . . . . . . . Exploration | -11 -10 -9 -9 -9 -8 -8 ------------- Run | Yrd Mat Mat Min Exi Min Mat Turns Passed 3484 | 66 397 474 567 341 450 1189 Spaces Moved 2195 | 45 302 229 400 282 359 578 Core 19 | 16 . . . . . 3 Treads . | . . . . . . . Legs 2176 | 29 302 229 400 282 359 575 Wheels . | . . . . . . . Hover . | . . . . . . . Flight . | . . . . . . . Fastest Speed 50 | 50 120 120 120 120 120 120 Average Speed 120 | 124 120 120 120 120 120 120 Slowest Speed 250 | 200 120 120 120 120 120 250 Overloaded Moves . | . . . . . . . Propulsion Burnouts . | . . . . . . . Robots Hopped . | . . . . . . . Potential Cave-ins . | . . . . . . . Cave-ins Triggered . | . . . . . . . Exploration Rate (%) 44 | 4 54 26 67 63 61 35 Regions Visited 6 Branch Regions 3 Pre-discovered Areas 1 | . . . 1 . . . Known Exits Taken . | . . . . . . . Unknown Exits Taken 6 | 1 1 1 1 1 1 . Scrap Searched 1 | . . . 1 . . . Spaces Dug . | . . . . . . . Terrain Destroyed 58 | . . 1 . . . 57 Melee . | . . . . . . . Projectile 4 | . . 1 . . . 3 AOE 54 | . . . . . . 54 Terrain Rammed . | . . . . . . . Walls Destroyed . | . . . . . . . Machines Disabled . | . . . . . . . Actions | -11 -10 -9 -9 -9 -8 -8 --------- Run | Yrd Mat Mat Min Exi Min Mat Total 2877 | 52 325 374 470 284 368 1004 Wait 533 | . 8 98 46 . . 381 Move 2189 | 44 301 228 399 281 358 578 Hop . | . . . . . . . Pick Up 17 | 2 7 2 1 1 3 1 Fast Attach 13 | 6 1 2 1 . 1 2 Attach 10 | . . 3 2 . . 5 Detach 2 | . . . . . . 2 Swap 15 | . . 4 4 1 2 4 Drop 13 | . 1 5 4 1 . 2 Fire 85 | . 7 32 13 . 4 29 Melee . | . . . . . . . Ram . | . . . . . . . Kick . | . . . . . . . Crush . | . . . . . . . Escape Stasis . | . . . . . . . Rewire . | . . . . . . . Trap . | . . . . . . . Miscellaneous . | . . . . . . . Route ------- -11/Scrapyard -10/Materials -9/Materials -9/Mines (discovered 3 exits: *Mat x2 / *Exi) -9/Exiles -8/Mines -8/Materials (discovered 3 exits: *Fac x3) History --------- Turn | Location | Event 7 | -11/Scrapyard | Discovered new exit (range 15) 67 | -11/Scrapyard | Entered Materials 68 | -10/Materials | Met a group of wandering Federalists 300 | -10/Materials | Build established: Mutant 339 | -10/Materials | Discovered new exit (range 15) 464 | -10/Materials | Entered another Materials area 464 | -9/Materials | Evolved 2 slots: Propulsion x2 855 | -9/Materials | Discovered new exit (range 13) 938 | -9/Materials | Entered Mines 981 | -9/Mines | Lost 4 parts (1n3w) 1134 | -9/Mines | Learned location of Storage (-7) 1135 | -9/Mines | Discovered new exit (range 6) 1196 | -9/Mines | Discovered new exit (range 3) 1496 | -9/Mines | Deemed a non-threat by the Exiles lab entrance 1498 | -9/Mines | Discovered new exit (range 5) 1505 | -9/Mines | Entered Exiles 1505 | -9/Exiles | Accompanied by 2 allies 1535 | -9/Exiles | Led the pair of lost Derelicts to a safe place 1550 | -9/Exiles | Met 8R-AWN 1575 | -9/Exiles | Met EX-HEX 1627 | -9/Exiles | Met EX-BIN 1647 | -9/Exiles | Aligned with FarCom system 1648 | -9/Exiles | Given EX-Vault access code 1684 | -9/Exiles | Opened EX-Vault 1696 | -9/Exiles | Found YOLO Cannon 1721 | -9/Exiles | Warned to stay clear of 0b10 Research branches 1756 | -9/Exiles | Met EX-DEC 1829 | -9/Exiles | Discovered new exit (range 12) 1846 | -9/Exiles | Left Exiles lab with YOLO Cannon 1846 | -9/Exiles | Entered Mines 2160 | -8/Mines | Build established: Scavenger-Mutant 2280 | -8/Mines | Discovered new exit (range 5) 2296 | -8/Mines | Entered Materials 2296 | -8/Materials | Evolved 2 slots: Utility x2 2593 | -8/Materials | Build established: Scavenger-Skirmisher 3305 | -8/Materials | Build established: Skirmisher 3318 | -8/Materials | Identified exit to Factory 3475 | -8/Materials | YOLO Cannon suddenly exploded 3476 | -8/Materials | Core integrity fell below 50% 3480 | -8/Materials | Core integrity fell below 20% 3485 | -8/Materials | Destroyed by H-55 Commando with Assault Rifle Last Messages --------------- Y-45 Defender destroyed. Penetrated by Slug. H-61 Shepherd calls for reinforcements. ALERT: Hostile activity reported, dispatching reinforcements to area. H-61 Shepherd destroyed. Slug penetrates Earth. Penetrated by Slug. Aluminum Leg destroyed. K-01 Serf destroyed. Penetrated by Slug. YOLO Cannon suddenly explodes. Carbon-fiber Leg destroyed. Hrd. Medium Armor Plating destroyed. Aluminum Leg destroyed. Core damaged (-208). [Achievement: YOLO] Penetrated by Slug. Lgt. Deuterium Engine destroyed. Penetrated by Slug. Map ----- +----------------------------------------------------+ | | | | | | | | | ##############??#?#??????????????????????????????? | | [ !! ##??##???????????????????????????????? | | !!! """ ##??#?#???????????????????????????????? | | !! """ #??????#??????????????????????????????? | | """ ##?#?#????????????????????????????????? | | #??####??#????????????????????????????? | | #?#?#?#???????????????????????????????? | | #?###?????????????????????????????????? | | #####+#######???#?#??????????????????????????????? | | ## ###?#?#?#?##??????????????????????????????? | | ###???###?????????????????????????????????? | | #?#?#??#####??????????????????????????????? | | ###?#?#?#??#??????####????????????????????? | | #??###?#?######### #????????????????????? | | #?###?##?##% # < #????????????????????? | | ###?#????## # #????????????????????? | | " #??##??##?# !! + ###+#######??????????? | | T ###?#?###?# ! # ?????????? | | " ######???## # w ?????????? | | #?##?##??#?? + [ t ??????????? | | ####?#??#????##;;; ;h #?????????????? | | #####???????## @ !=%#?????????????? | | ####/#######????#??#;;;; %= %=#?????????????? | | ##% #?#?????# [ % + ! ??????????? | | ## ##??????# h #?????????????? | | ## """ """ #?#?#??#; ! ; ??????????? | | ## """ """ #??##??## ; ??????????? | | ## """ """ #????#?#; ; ??????????? | | ## #??#?#?#;## #; ; !??????????? | | ## #??????#### ## ; ???????????? | | ## """T""" ##??#???#?# #? ; ;;;???????????? | | #############????????# ## # ;#??#?????????? | | ##########??#??????#?# ## # ##??#?????????? | | ##########???????????# ## #? #?????????????? | | ###?####?#????#????### #? #?? ##????????????? | | #########????????????# ####+####???#????#????????? | | #####?###?##?#??##??# ### # ? ?#????????????? | | #######?#?#?????#####+### #?????????????????? | | ########?#??##??# ## #????????#????????? | | #####???#??#?#### ## # ? ??????#???????? | | ######???#?#????# """" ## #??????#??????????? | | ##?###?#?#????### """" ## #?? ??????????????? | | ####??##?###?#??# """" ## #????#######??????? | | #######?###???#?# ## #?? ?????? | | ## ##############+######+### ?????? | | ?????? | +----------------------------------------------------+ Best States ------------- Heat Dissipation 31 Energy Generation 14 Energy Capacity 250 Matter Stores 300 Matter Capacity 300 Sight Range 16 Terrain Scan Range 14 Terrain Scan Density 110 Armor Coverage 225 Core Shielding 20 Evasion (%) 55 Targeting Accuracy 5 Item Schematics ----------------- None Robot Schematics ------------------ None Fabricated ------------ Nothing Repaired ---------- Nothing Studied --------- None Alien Tech Used ----------------- None Achievements -------------- YOLO Challenges ------------ None Game ------ Seed LongswordSwordBooster Manual? 0 Play Time 00:29:20 Cumulative 19.2 hours Start 2025.11.26 @ 23:11:30 End 2025.11.26 @ 23:47:36 Sessions 1 Manual Loads 0 Difficulty Rogue Special Mode None Game No. 27 Rogue 27 Adventurer 0 Explorer 0 Win Type - Total 0 Types 0/0/0/0/0/0/0/0/0/0 Lore% 6 Gallery% 19 Achievement% 16 Wizard Run 0 Options --------- Layout 1 ASCII 0 Keyboard 0 Movement Arrows Keybinds 0 Fullscreen 1 Font 32/SmallcapsGlow Map View 50x35 Zoom Use 4% Tactical HUD 0 Map Filters NONE Filters NONE Steam 1 RUN: eabc1011-7719-463d-9ccf-a18a9a698ac1